fUST/lending_fUST_20250630
["ID","MTS","AMOUNT","RATE_DAILY","PERIOD"]
[368602309,1751227838819,-151.0,0.00018531,2]
[368602310,1751227838829,-151.0,0.00018531,2]
[368602311,1751227838838,-151.0,0.00018531,2]
[368602312,1751227838848,-500.0,0.00018559,2]
[368602313,1751227838857,-267.68267573,0.00018559,2]
[368602314,1751227838867,-151.0,0.00018559,2]
[368602315,1751227838876,-202.71614556,0.00018559,2]
[368602316,1751227838885,-151.0,0.00018559,2]
[368602317,1751227838896,-151.0,0.00018559,2]
[368602318,1751227838905,-151.0,0.00018559,2]
[368602319,1751227838914,-151.0,0.00018559,2]
[368602320,1751227838924,-151.0,0.00018559,2]
[368602321,1751227838933,-151.0,0.00018559,2]
[368602322,1751227838942,-151.0,0.00018559,2]
[368602323,1751227838952,-151.0,0.00018559,2]
[368602324,1751227838962,-151.0,0.00018559,2]
[368602325,1751227838971,-500.0,0.00018586,2]
[368602326,1751227838981,-151.0,0.00018586,2]
[368602327,1751227838990,-151.0,0.00018586,2]
[368602328,1751227838999,-151.0,0.00018586,2]
[368602329,1751227839009,-206.63510145,0.00018586,2]
[368602330,1751227839019,-151.0,0.00018586,2]
[368602331,1751227839029,-151.0,0.00018586,2]
[368602332,1751227839039,-255.0,0.00018586,2]
[368602333,1751227839048,-151.0,0.00018586,2]
[368602334,1751227839058,-151.0,0.00018586,2]
[368602335,1751227839067,-151.0,0.00018586,2]
[368602336,1751227839077,-220.75,0.00018603,3]
[368602337,1751227839086,-662.26,0.00018604,3]
[368602338,1751227839095,-460.0,0.00018611,2]
[368602339,1751227839105,-957.11,0.00018611,2]
[368602340,1751227839114,-460.0,0.00018611,2]
[368602341,1751227839123,-460.0,0.00018611,2]
[368602342,1751227839133,-525.07,0.00018611,2]
[368602343,1751227839143,-579.06,0.00018611,2]
[368602344,1751227839152,-2172.33,0.00018611,2]
[368602345,1751227839161,-460.0,0.00018611,2]
[368602346,1751227839171,-460.0,0.00018611,2]
[368602347,1751227839183,-460.0,0.00018611,2]
[368602348,1751227839193,-500.0,0.00018611,2]
[368602349,1751227839202,-460.0,0.00018612,2]
[368602350,1751227839212,-460.0,0.00018612,2]
[368602351,1751227839221,-474.1359771,0.00018612,2]
[368602352,1751227839231,-318.32956325,0.00018612,2]
[368602353,1751227839240,-205.56,0.00018612,2]
[368602354,1751227839249,-564.64358389,0.00018612,2]
[368602355,1751227839259,-460.0,0.00018612,2]
[368602356,1751227839271,-460.0,0.00018612,2]
[368602357,1751227839283,-460.0,0.00018612,2]
[368602358,1751227839292,-460.0,0.00018612,2]
[368602359,1751227839301,-3161.16,0.00018612,2]
[368602360,1751227839311,-2985.09,0.00018612,2]
[368602361,1751227839320,-460.0,0.00018612,2]
[368602362,1751227839330,-573.76,0.00018612,2]
[368602363,1751227839340,-460.0,0.00018612,2]
[368602364,1751227839350,-649.15,0.00018612,2]
[368602365,1751227839360,-460.0,0.00018612,2]
[368602366,1751227839369,-957.11,0.00018612,2]
[368602367,1751227839379,-957.11,0.00018612,2]
[368602368,1751227839388,-460.0,0.00018612,2]
[368602369,1751227839398,-460.0,0.00018612,2]
[368602370,1751227839407,-4173.13,0.00018612,2]
[368602371,1751227839417,-3311.69,0.00018612,2]
[368602372,1751227839427,-3593.5,0.00018612,2]
[368602373,1751227839437,-494.09,0.00018612,2]
[368602374,1751227839446,-1876.75,0.00018612,2]
[368602375,1751227839456,-505.42,0.00018612,2]
[368602376,1751227839465,-460.0,0.00018612,2]
[368602377,1751227839475,-545.51,0.00018612,2]
[368602378,1751227839485,-460.0,0.00018612,2]
[368602379,1751227839495,-460.0,0.00018612,2]
[368602380,1751227839504,-500.0,0.00018612,2]
[368602381,1751227839514,-460.0,0.00018613,2]
[368602382,1751227839525,-460.0,0.00018613,2]
[368602383,1751227839538,-460.0,0.00018613,2]
[368602384,1751227839548,-460.0,0.00018613,2]
[368602385,1751227839558,-599.43,0.00018613,2]
[368602386,1751227839567,-460.0,0.00018613,2]
[368602387,1751227839577,-460.0,0.00018613,2]
[368602390,1751227839772,-460.0,0.00018613,2]
[368602391,1751227839782,-602.63,0.00018613,2]
[368602392,1751227839791,-460.0,0.00018613,2]
[368602393,1751227839801,-309.80196835,0.00018613,2]
[368602394,1751227839810,-460.0,0.00018613,2]
[368602395,1751227839819,-1000.0,0.00018613,2]
[368602396,1751227839829,-460.0,0.00018613,2]
[368602397,1751227839838,-460.0,0.00018613,2]
[368602398,1751227839847,-460.0,0.00018613,2]
[368602399,1751227839856,-460.0,0.00018613,2]
[368602400,1751227839867,-532.35,0.00018613,2]
[368602401,1751227839876,-460.0,0.00018613,2]
[368602402,1751227839885,-460.0,0.00018613,2]
[368602403,1751227839895,-460.0,0.00018613,2]
[368602404,1751227839904,-460.0,0.00018613,2]
[368602405,1751227839914,-504.94,0.00018613,2]
[368602406,1751227839923,-241.01969559,0.00018613,2]
[368602407,1751227839933,-484.52112975,0.00018613,2]
[368602408,1751227839943,-460.0,0.00018613,2]
[368602409,1751227839952,-460.0,0.00018613,2]
[368602410,1751227839962,-460.0,0.00018613,2]
[368602411,1751227839972,-460.0,0.00018613,2]
[368602412,1751227839981,-1315.02,0.00018613,2]
[368602413,1751227839990,-460.0,0.00018613,2]
[368602414,1751227840000,-460.0,0.00018613,2]
[368602415,1751227840011,-460.0,0.00018613,2]
[368602416,1751227840022,-814.59,0.00018613,2]
[368602417,1751227840032,-1050.34,0.00018613,2]
[368602418,1751227840042,-460.0,0.00018613,2]
[368602419,1751227840051,-460.0,0.00018613,2]
[368602420,1751227840061,-460.0,0.00018613,2]
[368602421,1751227840071,-460.0,0.00018613,2]
[368602422,1751227840080,-460.0,0.00018613,2]
[368602423,1751227840089,-460.0,0.00018613,2]
[368602424,1751227840099,-234.93925114,0.00018613,2]
[368602425,1751227840109,-460.0,0.00018613,2]
[368602426,1751227840118,-460.0,0.00018613,2]
[368602427,1751227840128,-460.0,0.00018613,2]
[368602428,1751227840138,-622.54,0.00018613,2]
[368602429,1751227840148,-164.70020361,0.00018613,2]
[368602430,1751227840157,-460.0,0.00018613,2]
[368602431,1751227840167,-460.0,0.00018613,2]
[368602432,1751227840176,-615.91,0.00018613,2]
[368602433,1751227840185,-460.0,0.00018613,2]
[368602434,1751227840195,-622.23,0.00018613,2]
[368602435,1751227840204,-460.0,0.00018613,2]
[368602436,1751227840214,-460.0,0.00018613,2]
[368602437,1751227840223,-580.6,0.00018613,2]
[368602438,1751227840233,-460.0,0.00018613,2]
[368602439,1751227840243,-1045.28,0.00018613,2]
[368602440,1751227840252,-966.73,0.00018613,2]
[368602441,1751227840262,-460.0,0.00018613,2]
[368602442,1751227840272,-460.0,0.00018613,2]
[368602443,1751227840281,-460.0,0.00018613,2]
[368602444,1751227840291,-1694.13,0.00018613,2]
[368602445,1751227840301,-460.0,0.00018613,2]
[368602446,1751227840311,-471.76,0.00018613,2]
[368602447,1751227840320,-957.11,0.00018613,2]
[368602448,1751227840330,-460.0,0.00018613,2]
[368602449,1751227840340,-4024.99,0.00018613,2]
[368602450,1751227840349,-460.0,0.00018613,2]
[368602451,1751227840359,-460.0,0.00018613,2]
[368602452,1751227840369,-420.11859875,0.00018613,2]
[368602453,1751227840378,-460.0,0.00018613,2]
[368602454,1751227840388,-484.82,0.00018613,2]
[368602455,1751227840398,-942.9,0.00018613,2]
[368602456,1751227840407,-1268.33,0.00018613,2]
[368602457,1751227840417,-460.0,0.00018613,2]
[368602458,1751227840426,-460.0,0.00018613,2]
[368602459,1751227840435,-460.0,0.00018613,2]
[368602460,1751227840445,-460.0,0.00018613,2]
[368602461,1751227840454,-460.0,0.00018613,2]
[368602462,1751227840463,-688.52,0.00018613,2]
[368602463,1751227840472,-460.0,0.00018613,2]
[368602464,1751227840482,-460.0,0.00018613,2]
[368602465,1751227840491,-1363.28,0.00018613,2]
[368602466,1751227840501,-460.0,0.00018613,2]
[368602467,1751227840511,-809.64,0.00018613,2]
[368602468,1751227840520,-640.55,0.00018613,2]
[368602469,1751227840533,-460.0,0.00018613,2]
[368602470,1751227840543,-1187.21,0.00018613,2]
[368602471,1751227840552,-980.78,0.00018613,2]
[368602472,1751227840562,-460.0,0.00018613,2]
[368602473,1751227840572,-460.0,0.00018613,2]
[368602474,1751227840581,-460.0,0.00018613,2]
[368602475,1751227840590,-4762.4,0.00018613,2]
[368602476,1751227840599,-460.0,0.00018613,2]
[368602477,1751227840608,-460.0,0.00018613,2]
[368602478,1751227840617,-460.0,0.00018613,2]
[368602479,1751227840627,-521.68,0.00018613,2]
[368602480,1751227840637,-460.0,0.00018613,2]
[368602481,1751227840647,-460.0,0.00018613,2]
[368602482,1751227840656,-460.0,0.00018613,2]
[368602483,1751227840668,-460.0,0.00018613,2]
[368602484,1751227840677,-500.0,0.00018613,2]
[368602485,1751227840686,-460.0,0.00018613,2]
[368602486,1751227840696,-460.0,0.00018613,2]
[368602487,1751227840705,-460.0,0.00018613,2]
[368602488,1751227840715,-500.0,0.00018614,2]
[368602489,1751227840724,-245.0,0.00018614,2]
[368602490,1751227840733,-151.0,0.00018614,2]
[368602491,1751227840742,-247.54744974,0.00018614,2]
[368602492,1751227840752,-198.0,0.00018614,2]
[368602493,1751227840761,-151.0,0.00018614,2]
[368602494,1751227840771,-151.0,0.00018614,2]
[368602495,1751227840780,-151.0,0.00018614,2]
[368602496,1751227840790,-151.0,0.00018614,2]
[368602497,1751227840799,-460.0,0.00018614,2]
[368602498,1751227840809,-460.0,0.00018614,2]
[368602499,1751227840819,-460.0,0.00018614,2]
[368602500,1751227840828,-460.0,0.00018614,2]
[368602501,1751227840837,-460.0,0.00018614,2]
[368602502,1751227840846,-460.0,0.00018614,2]
[368602503,1751227840856,-460.0,0.00018614,2]
[368602504,1751227840866,-460.0,0.00018614,2]
[368602505,1751227840875,-460.0,0.00018614,2]
[368602506,1751227840885,-518.65,0.00018614,2]
[368602507,1751227840894,-460.0,0.00018614,2]
[368602508,1751227840903,-614.5,0.00018614,2]
[368602509,1751227840913,-460.0,0.00018614,2]
[368602510,1751227840923,-460.0,0.00018614,2]
[368602511,1751227840932,-460.0,0.00018614,2]
[368602512,1751227840941,-460.0,0.00018614,2]
[368602513,1751227840951,-460.0,0.00018614,2]
[368602514,1751227840960,-460.0,0.00018614,2]
[368602515,1751227840969,-460.0,0.00018614,2]
[368602516,1751227840979,-1043.13,0.00018614,2]
[368602517,1751227840988,-581.11,0.00018614,2]
[368602518,1751227840997,-460.0,0.00018614,2]
[368602519,1751227841007,-460.0,0.00018614,2]
[368602520,1751227841016,-460.0,0.00018614,2]
[368602521,1751227841025,-727.91,0.00018614,2]
[368602522,1751227841035,-460.0,0.00018614,2]
[368602523,1751227841044,-1267.43,0.00018614,2]
[368602524,1751227841053,-460.0,0.00018614,2]
[368602525,1751227841062,-460.0,0.00018614,2]
[368602526,1751227841072,-460.0,0.00018614,2]
[368602527,1751227841082,-460.0,0.00018614,2]
[368602528,1751227841091,-460.0,0.00018614,2]
[368602529,1751227841100,-460.0,0.00018614,2]
[368602530,1751227841109,-460.0,0.00018614,2]
[368602531,1751227841118,-460.0,0.00018614,2]
[368602532,1751227841128,-460.0,0.00018614,2]
[368602533,1751227841137,-460.0,0.00018614,2]
[368602534,1751227841146,-477.09,0.00018614,2]
[368602535,1751227841155,-500.0,0.00018614,2]
[368602536,1751227841165,-460.0,0.00018615,2]
[368602537,1751227841175,-651.75,0.00018615,2]
[368602538,1751227841184,-460.0,0.00018615,2]
[368602539,1751227841193,-460.0,0.00018615,2]
[368602540,1751227841202,-468.45,0.00018615,2]
[368602541,1751227841211,-500.0,0.00018615,2]
[368602542,1751227841221,-500.0,0.00018615,2]
[368602543,1751227841230,-500.0,0.00018641,2]
[368602544,1751227841240,-245.0,0.00018641,2]
[368602545,1751227841249,-245.0,0.00018641,2]
[368602546,1751227841258,-245.0,0.00018641,2]
[368602547,1751227841268,-245.0,0.00018641,2]
[368602548,1751227841277,-245.0,0.00018641,2]
[368602549,1751227841287,-500.0,0.00018668,2]
[368602550,1751227841296,-500.0,0.00018696,2]
[368602551,1751227841305,-314.0,0.00018715,2]
[368602552,1751227841314,-500.0,0.00018723,2]
[368602553,1751227841324,-228.0,0.00018751,2]
[368602554,1751227841333,-460.0,0.00018885,2]
[368602555,1751227841342,-525.07,0.00018885,2]
[368602556,1751227841352,-579.06,0.00018885,2]
[368602557,1751227841361,-2172.33,0.00018885,2]
[368602558,1751227841370,-460.0,0.00018885,2]
[368602559,1751227841380,-460.0,0.00018885,2]
[368602560,1751227841389,-500.0,0.00018885,2]
[368602561,1751227841399,-400.94248117,0.00018886,2]
[368602562,1751227841408,-460.0,0.00018886,2]
[368602563,1751227841418,-460.0,0.00018886,2]
[368602564,1751227841427,-3161.16,0.00018886,2]
[368602565,1751227841437,-2985.09,0.00018886,2]
[368602566,1751227841446,-454.57540076,0.00018886,2]
[368602567,1751227841456,-573.76,0.00018886,2]
[368602568,1751227841466,-460.0,0.00018886,2]
[368602569,1751227841475,-649.15,0.00018886,2]
[368602570,1751227841485,-460.0,0.00018886,2]
[368602571,1751227841495,-460.0,0.00018886,2]
[368602572,1751227841504,-957.11,0.00018886,2]
[368602573,1751227841513,-957.11,0.00018886,2]
[368602574,1751227841523,-4173.13,0.00018886,2]
[368602575,1751227841533,-3311.69,0.00018886,2]
[368602576,1751227841542,-3593.5,0.00018886,2]
[368602577,1751227841552,-494.09,0.00018886,2]
[368602578,1751227841561,-1876.75,0.00018886,2]
[368602579,1751227841571,-505.42,0.00018886,2]
[368602580,1751227841580,-460.0,0.00018886,2]
[368602581,1751227841589,-545.51,0.00018886,2]
[368602582,1751227841599,-460.0,0.00018886,2]
[368602583,1751227841609,-460.0,0.00018886,2]
[368602584,1751227841618,-460.0,0.00018887,2]
[368602585,1751227841628,-460.0,0.00018887,2]
[368602586,1751227841638,-599.43,0.00018887,2]
[368602587,1751227841647,-460.0,0.00018887,2]
[368602588,1751227841657,-460.0,0.00018887,2]
[368602589,1751227841667,-194.42,0.00018887,2]
[368602590,1751227841676,-460.0,0.00018887,2]
[368602591,1751227841685,-460.0,0.00018887,2]
[368602592,1751227841694,-460.0,0.00018887,2]
[368602593,1751227841704,-555.32,0.00018887,2]
[368602594,1751227841713,-460.0,0.00018887,2]
[368602595,1751227841723,-460.0,0.00018887,2]
[368602596,1751227841732,-460.0,0.00018887,2]
[368602597,1751227841741,-1315.02,0.00018887,2]
[368602598,1751227841752,-460.0,0.00018887,2]
[368602599,1751227841761,-460.0,0.00018887,2]
[368602600,1751227841770,-814.59,0.00018887,2]
[368602601,1751227841780,-1050.34,0.00018887,2]
[368602602,1751227841790,-460.0,0.00018887,2]
[368602603,1751227841799,-460.0,0.00018887,2]
[368602604,1751227841808,-460.0,0.00018887,2]
[368602605,1751227841817,-460.0,0.00018887,2]
[368602606,1751227841827,-460.0,0.00018887,2]
[368602607,1751227841836,-460.0,0.00018887,2]
[368602608,1751227841845,-460.0,0.00018887,2]
[368602609,1751227841855,-460.0,0.00018887,2]
[368602610,1751227841864,-622.54,0.00018887,2]
[368602611,1751227841874,-460.0,0.00018887,2]
[368602612,1751227841884,-615.91,0.00018887,2]
[368602613,1751227841893,-460.0,0.00018887,2]
[368602614,1751227841902,-622.23,0.00018887,2]
[368602615,1751227841911,-460.0,0.00018887,2]
[368602616,1751227841920,-460.0,0.00018887,2]
[368602617,1751227841930,-580.6,0.00018887,2]
[368602618,1751227841941,-460.0,0.00018887,2]
[368602619,1751227841951,-1045.28,0.00018887,2]
[368602620,1751227841961,-966.73,0.00018887,2]
[368602621,1751227841972,-460.0,0.00018887,2]
[368602622,1751227841982,-460.0,0.00018887,2]
[368602623,1751227841991,-1694.13,0.00018887,2]
[368602624,1751227842000,-460.0,0.00018887,2]
[368602625,1751227842012,-471.76,0.00018887,2]
[368602626,1751227842023,-957.11,0.00018887,2]
[368602627,1751227842032,-460.0,0.00018887,2]
[368602628,1751227842041,-4024.99,0.00018887,2]
[368602629,1751227842050,-460.0,0.00018887,2]
[368602630,1751227842060,-460.0,0.00018887,2]
[368602631,1751227842069,-484.82,0.00018887,2]
[368602632,1751227842078,-942.9,0.00018887,2]
[368602633,1751227842087,-1268.33,0.00018887,2]
[368602634,1751227842097,-460.0,0.00018887,2]
[368602635,1751227842107,-688.52,0.00018887,2]
[368602636,1751227842116,-460.0,0.00018887,2]
[368602637,1751227842125,-460.0,0.00018887,2]
[368602638,1751227842135,-1363.28,0.00018887,2]
[368602639,1751227842146,-460.0,0.00018887,2]
[368602640,1751227842155,-809.64,0.00018887,2]
[368602641,1751227842164,-640.55,0.00018887,2]
[368602642,1751227842175,-460.0,0.00018887,2]
[368602643,1751227842186,-1187.21,0.00018887,2]
[368602644,1751227842195,-980.78,0.00018887,2]
[368602645,1751227842204,-460.0,0.00018887,2]
[368602646,1751227842213,-460.0,0.00018887,2]
[368602647,1751227842222,-4762.4,0.00018887,2]
[368602648,1751227842231,-460.0,0.00018887,2]
[368602649,1751227842241,-460.0,0.00018887,2]
[368602650,1751227842250,-460.0,0.00018887,2]
[368602651,1751227842259,-460.0,0.00018887,2]
[368602652,1751227842268,-460.0,0.00018887,2]
[368602653,1751227842279,-500.0,0.00018887,2]
[368602654,1751227842288,-460.0,0.00018887,2]
[368602655,1751227842298,-460.0,0.00018887,2]
[368602656,1751227842307,-460.0,0.00018887,2]
[368602657,1751227842318,-251.86662136,0.00018888,2]
[368602658,1751227842327,-460.0,0.00018888,2]
[368602659,1751227842338,-460.0,0.00018888,2]
[368602660,1751227842348,-460.0,0.00018888,2]
[368602661,1751227842358,-460.0,0.00018888,2]
[368602662,1751227842368,-460.0,0.00018888,2]
[368602663,1751227842378,-460.0,0.00018888,2]
[368602664,1751227842387,-518.65,0.00018888,2]
[368602665,1751227842397,-614.5,0.00018888,2]
[368602666,1751227842407,-460.0,0.00018888,2]
[368602667,1751227842416,-460.0,0.00018888,2]
[368602668,1751227842426,-460.0,0.00018888,2]
[368602669,1751227842435,-460.0,0.00018888,2]
[368602670,1751227842446,-460.0,0.00018888,2]
[368602671,1751227842455,-460.0,0.00018888,2]
[368602672,1751227842464,-1043.13,0.00018888,2]
[368602673,1751227842473,-581.11,0.00018888,2]
[368602674,1751227842483,-460.0,0.00018888,2]
[368602675,1751227842492,-460.0,0.00018888,2]
[368602676,1751227842502,-460.0,0.00018888,2]
[368602677,1751227842512,-727.91,0.00018888,2]
[368602678,1751227842522,-460.0,0.00018888,2]
[368602679,1751227842532,-1267.43,0.00018888,2]
[368602680,1751227842544,-460.0,0.00018888,2]
[368602681,1751227842554,-460.0,0.00018888,2]
[368602682,1751227842563,-460.0,0.00018888,2]
[368602683,1751227842574,-460.0,0.00018888,2]
[368602684,1751227842583,-460.0,0.00018888,2]
[368602685,1751227842593,-460.0,0.00018888,2]
[368602686,1751227842603,-460.0,0.00018888,2]
[368602687,1751227842732,-460.0,0.00018888,2]
[368602688,1751227842742,-460.0,0.00018888,2]
[368602689,1751227842752,-500.0,0.00018888,2]
[368602690,1751227842762,-651.75,0.00018889,2]
[368602691,1751227842771,-460.0,0.00018889,2]
[368602692,1751227842781,-465.73136788,0.00018891,2]
[368602693,1751227842790,-381.73973716,0.000189,2]
[368602694,1751227842800,-314.0,0.00018907,2]
[368602695,1751227842809,-2936.09252431,0.00018963,2]
[368602696,1751227842819,-5422.88678994,0.00019,2]
[368602697,1751227842828,-303.00000303,0.00019,2]
[368602698,1751227842837,-500.0,0.00019064,2]
[368602699,1751227842846,-500.0,0.00019064,2]
[368602700,1751227842856,-501.56666616,0.00019064,2]
[368602701,1751227842866,-500.0,0.00019064,2]
[368602702,1751227842875,-500.0,0.00019064,2]
[368602703,1751227842885,-500.0,0.00019064,2]
[368602704,1751227842895,-500.0,0.00019064,2]
[368602705,1751227842904,-519.92570226,0.00019064,2]
[368602706,1751227842913,-500.0,0.00019064,2]
[368602707,1751227842922,-500.56297751,0.00019064,2]
[368602708,1751227842931,-500.0,0.00019064,2]
[368602709,1751227842940,-500.0,0.00019064,2]
[368602710,1751227842949,-500.0,0.00019064,2]
[368602711,1751227842958,-500.0,0.00019064,2]
[368602712,1751227842967,-314.0,0.00019065,2]
[368602713,1751227842976,-957.11,0.00019077,2]
[368602714,1751227842986,-327.20861149,0.00019078,2]
[368602715,1751227842995,-500.0,0.00019106,2]
[368602716,1751227843005,-460.0,0.00019159,2]
[368602717,1751227843014,-525.07,0.00019159,2]
[368602718,1751227843023,-579.06,0.00019159,2]
[368602719,1751227843033,-2172.33,0.00019159,2]
[368602720,1751227843042,-460.0,0.00019159,2]
[368602721,1751227843050,-460.0,0.00019159,2]
[368602722,1751227843060,-500.0,0.00019159,2]
[368602723,1751227843069,-460.0,0.0001916,2]
[368602724,1751227843078,-3161.16,0.0001916,2]
[368602725,1751227843087,-2985.09,0.0001916,2]
[368602726,1751227843096,-573.76,0.0001916,2]
[368602727,1751227843105,-460.0,0.0001916,2]
[368602728,1751227843115,-649.15,0.0001916,2]
[368602729,1751227843124,-460.0,0.0001916,2]
[368602730,1751227843133,-460.0,0.0001916,2]
[368602731,1751227843142,-957.11,0.0001916,2]
[368602732,1751227843152,-957.11,0.0001916,2]
[368602733,1751227843161,-957.11,0.0001916,2]
[368602734,1751227843170,-957.11,0.0001916,2]
[368602735,1751227843179,-4173.13,0.0001916,2]
[368602736,1751227843188,-3311.69,0.0001916,2]
[368602737,1751227843198,-3593.5,0.0001916,2]
[368602738,1751227843207,-494.09,0.0001916,2]
[368602739,1751227843216,-1876.75,0.0001916,2]
[368602740,1751227843225,-505.42,0.0001916,2]
[368602741,1751227843235,-514.92,0.0001916,2]
[368602742,1751227843244,-545.51,0.0001916,2]
[368602743,1751227843253,-460.0,0.0001916,2]
[368602744,1751227843262,-460.0,0.0001916,2]
[368602745,1751227843271,-500.0,0.0001916,2]
[368602746,1751227843281,-460.0,0.00019161,2]
[368602747,1751227843290,-460.0,0.00019161,2]
[368602748,1751227843298,-460.0,0.00019161,2]
[368602749,1751227843307,-599.43,0.00019161,2]
[368602750,1751227843317,-460.0,0.00019161,2]
[368602751,1751227843326,-460.0,0.00019161,2]
[368602752,1751227843335,-460.0,0.00019161,2]
[368602753,1751227843344,-460.0,0.00019161,2]
[368602754,1751227843353,-456.81367445,0.00019161,2]
[368602755,1751227843363,-469.87,0.00019161,2]
[368602756,1751227843373,-460.0,0.00019161,2]
[368602757,1751227843382,-460.0,0.00019161,2]
[368602758,1751227843391,-1315.02,0.00019161,2]
[368602759,1751227843400,-523.59,0.00019161,2]
[368602760,1751227843410,-460.0,0.00019161,2]
[368602761,1751227843420,-814.59,0.00019161,2]
[368602762,1751227843429,-1050.34,0.00019161,2]
[368602763,1751227843439,-460.0,0.00019161,2]
[368602764,1751227843448,-460.0,0.00019161,2]
[368602765,1751227843457,-460.0,0.00019161,2]
[368602766,1751227843467,-460.0,0.00019161,2]
[368602767,1751227843477,-460.0,0.00019161,2]
[368602768,1751227843486,-460.0,0.00019161,2]
[368602769,1751227843495,-460.0,0.00019161,2]
[368602770,1751227843505,-480.08,0.00019161,2]
[368602771,1751227843514,-622.54,0.00019161,2]
[368602772,1751227843524,-460.0,0.00019161,2]
[368602773,1751227843534,-615.91,0.00019161,2]
[368602774,1751227843544,-460.0,0.00019161,2]
[368602775,1751227843553,-622.23,0.00019161,2]
[368602776,1751227843563,-460.0,0.00019161,2]
[368602777,1751227843572,-460.0,0.00019161,2]
[368602778,1751227843582,-580.6,0.00019161,2]
[368602779,1751227843591,-1045.28,0.00019161,2]
[368602780,1751227843600,-966.73,0.00019161,2]
[368602781,1751227843610,-460.0,0.00019161,2]
[368602782,1751227843619,-460.0,0.00019161,2]
[368602783,1751227843629,-1694.13,0.00019161,2]
[368602784,1751227843638,-460.0,0.00019161,2]
[368602785,1751227843647,-471.76,0.00019161,2]
[368602786,1751227843656,-957.11,0.00019161,2]
[368602787,1751227843666,-4024.99,0.00019161,2]
[368602788,1751227843675,-460.0,0.00019161,2]
[368602789,1751227843684,-460.0,0.00019161,2]
[368602790,1751227843693,-484.82,0.00019161,2]
[368602791,1751227843702,-942.9,0.00019161,2]
[368602792,1751227843712,-1268.33,0.00019161,2]
[368602793,1751227843721,-460.0,0.00019161,2]
[368602794,1751227843731,-688.52,0.00019161,2]
[368602795,1751227843740,-460.0,0.00019161,2]
[368602796,1751227843750,-460.0,0.00019161,2]
[368602797,1751227843760,-1363.28,0.00019161,2]
[368602798,1751227843769,-460.0,0.00019161,2]
[368602799,1751227843780,-809.64,0.00019161,2]
[368602800,1751227843789,-640.55,0.00019161,2]
[368602801,1751227843799,-1187.21,0.00019161,2]
[368602802,1751227843809,-980.78,0.00019161,2]
[368602803,1751227843819,-460.0,0.00019161,2]
[368602804,1751227843828,-460.0,0.00019161,2]
[368602805,1751227843838,-4762.4,0.00019161,2]
[368602806,1751227843849,-460.0,0.00019161,2]
[368602807,1751227843859,-460.0,0.00019161,2]
[368602808,1751227843869,-460.0,0.00019161,2]
[368602809,1751227843878,-460.0,0.00019161,2]
[368602810,1751227843887,-460.0,0.00019161,2]